bitfinex-derivatives/quotes_SOLF0:USTF0_20250117
["timestamp","ask_amount","ask_price","bid_price","bid_amount"]
[1737092140178,171.40116399,212.44,212.36,4.92]
[1737092140487,171.40116399,212.44,212.35,7.51019111]
[1737092140687,7.51019111,212.4,212.34,4.94]
[1737092141388,2.966,212.52,212.17,15.90675638]
[1737092141389,11.72093935,212.36,212.35,5.29689436]
[1737092141686,11.72093935,212.36,212.26,4.94]
[1737092141893,11.72093935,212.31,212.26,4.94]
[1737092143184,11.72093935,212.31,212.26,9.6518]
[1737092143389,11.72093935,212.31,212.26,4.94]
[1737092147791,11.72093935,212.28,212.23,4.7124]
[1737092149188,11.72093935,212.28,212.16,4.5706]
[1737092149189,11.72093935,212.25,212.17,4.92]
[1737092149394,11.72093935,212.25,212.18,3.9561201]
[1737092149592,16.43243935,212.28,212.19,3.9561201]
[1737092149794,16.43243935,212.28,212.2,3.9561201]
[1737092149990,16.43243935,212.28,212.21,3.9561201]
[1737092150189,16.43243935,212.28,212.2,4.7131]
[1737092150389,16.43243935,212.28,212.21,3.95629264]
[1737092150590,16.43243935,212.28,212.2,4.7131]
[1737092150794,16.43243935,212.28,212.21,3.95629264]
[1737092151093,16.43243935,212.28,212.2,4.7131]
[1737092151392,16.43243935,212.28,212.21,3.95644924]
[1737092151593,16.43243935,212.28,212.21,4.7129]
[1737092152991,16.43243935,212.28,212.22,3.95662357]
[1737092153194,16.43243935,212.28,212.21,4.7129]
[1737092153394,16.43243935,212.28,212.22,3.95685206]
[1737092153595,16.43243935,212.28,212.21,4.7129]
[1737092154197,16.43243935,212.28,212.22,5.2240079]
[1737092155103,16.43243935,212.28,212.23,5.2240079]
[1737092155400,16.43243935,212.28,212.21,4.7129]
[1737092158499,16.43243935,212.28,212.22,5.22614543]
[1737092158896,16.43243935,212.28,212.22,4.7128]
[1737092163403,7.50729707,212.25,212.22,4.7128]
[1737092167409,7.50729707,212.23,212.16,1.5601]
[1737092167604,7.50729707,212.23,212.2,4.7131]
[1737092167907,7.50729707,212.23,212.17,7.50729707]
[1737092168109,7.50729707,212.23,212.18,3.9598979]
[1737092168408,7.50729707,212.23,212.19,3.9598979]
[1737092168604,7.50729707,212.23,212.2,3.9598979]
[1737092168800,7.50729707,212.23,212.2,5.22798138]
[1737092169407,7.50729707,212.23,212.21,5.22798138]
[1737092170212,7.50729707,212.23,212.12,4.88]
[1737092170513,7.50729707,212.2,212.13,11.46798365]
[1737092170707,7.50729707,212.2,212.14,3.96068658]
[1737092170902,7.50729707,212.2,212.15,3.96068658]
[1737092171102,7.50729707,212.2,212.18,4.7136]
[1737092171310,7.50729707,212.2,212.19,3.96068658]
[1737092171712,7.50729707,212.2,212.19,9.18969759]
[1737092172306,12.22049707,212.2,212.19,5.22901101]
[1737092172608,12.22049707,212.2,212.19,9.19084542]
[1737092172814,12.22049707,212.2,212.19,5.22901101]
[1737092173611,12.22049707,212.2,212.15,4.7143]
[1737092173812,7.50729707,212.18,212.16,3.96210607]
[1737092174012,7.50729707,212.18,212.15,4.7143]
[1737092174216,7.50729707,212.18,212.16,3.96209615]
[1737092174513,7.50729707,212.18,212.17,5.2304243]
[1737092174713,2.9925,212.26,212.17,5.2304243]
[1737092174913,7.50729707,212.22,212.17,5.2304243]
[1737092175217,7.50729707,212.25,212.18,3.96138976]
[1737092175409,7.50729707,212.25,212.17,12.73772137]
[1737092175611,7.50729707,212.25,212.18,9.19168003]
[1737092175802,7.50729707,212.25,212.2,4.7132]
[1737092176007,7.50729707,212.25,212.19,5.2304243]
[1737092176912,7.50729707,212.25,212.2,5.2304243]
[1737092177116,7.50729707,212.25,212.21,4.7129]
[1737092178114,12.21939707,212.25,212.2,4.7131]
[1737092178311,7.50729707,212.25,212.17,7.50729707]
[1737092178509,7.50729707,212.25,212.21,5.22896229]
[1737092179112,7.50729707,212.25,212.21,4.713]
[1737092180116,7.50729707,212.25,212.22,4.7128]
[1737092180314,7.50729707,212.25,212.19,7.50729707]
[1737092180616,7.50729707,212.27,212.2,3.96047099]
[1737092180814,7.50729707,212.27,212.19,7.50729707]
[1737092181011,7.50729707,212.27,212.2,3.96045188]
[1737092181211,7.50729707,212.27,212.19,7.50729707]
[1737092181412,7.50729707,212.27,212.21,5.22871098]
[1737092181817,7.50729707,212.27,212.2,5.22871098]
[1737092182318,7.50729707,212.27,212.21,9.18911577]
[1737092182514,7.50729707,212.25,212.22,4.7126]
[1737092183918,7.50729707,212.23,212.21,4.7129]
[1737092185618,7.50729707,212.23,212.22,5.2322566]
[1737092186917,7.50729707,212.25,212.22,5.2322566]
[1737092187817,7.50729707,212.25,212.23,5.2322566]
[1737092188416,2.8919,212.32,212.23,5.2322566]
[1737092188712,7.50729707,212.28,212.24,5.2322566]
[1737092189108,7.50729707,212.28,212.25,5.2322566]
[1737092189309,7.50729707,212.28,212.25,9.9441566]
[1737092189509,7.50729707,212.28,212.25,5.2322566]
[1737092190220,12.21869707,212.28,212.25,5.2322566]
[1737092190420,7.50729707,212.28,212.26,5.2322566]
[1737092190718,7.50729707,212.28,212.25,4.7121]
[1737092191918,7.50729707,212.28,212.26,5.24089106]
[1737092192114,7.50729707,212.29,212.26,5.24089106]
[1737092192516,7.50729707,212.29,212.27,5.24089106]
[1737092192717,7.50729707,212.29,212.27,9.95249106]
[1737092192918,7.50729707,212.29,212.27,5.24089106]
[1737092193119,4.7121,212.25,212.2,4.713]
[1737092193318,7.50729707,212.24,212.21,3.97137512]
[1737092193515,7.50729707,212.24,212.22,3.9714444]
[1737092193820,7.50729707,212.24,212.21,9.95612857]
[1737092194021,7.50729707,212.24,212.22,3.97148065]
[1737092194318,7.50729707,212.24,212.21,9.95612857]
[1737092194519,7.50729707,212.24,212.23,5.24322857]
[1737092196309,7.50729707,212.24,212.23,9.21526521]
[1737092199123,7.50729707,212.24,212.23,2.85182857]
[1737092199322,7.50729707,212.24,212.13,25.97178585]
[1737092199522,7.50729707,212.19,212.14,3.973053]
[1737092199721,7.50729707,212.19,212.15,3.973053]
[1737092199926,7.50729707,212.19,212.16,3.973053]
[1737092200222,7.50729707,212.21,212.17,8.686953]
[1737092200417,7.50729707,212.23,212.18,3.973053]
[1737092200621,7.50729707,212.23,212.19,3.973053]
[1737092200823,7.50729707,212.23,212.2,3.973053]
[1737092201021,7.50729707,212.23,212.15,7.50729707]
[1737092201222,7.50729707,212.23,212.16,3.97268624]
[1737092201422,7.50729707,212.23,212.17,3.97268624]
[1737092201623,7.50729707,212.23,212.18,3.97232452]
[1737092201822,7.50729707,212.23,212.19,3.97232452]
[1737092202021,7.50729707,212.23,212.2,3.97232452]
[1737092202220,7.50729707,212.23,212.21,3.97232452]
[1737092202424,7.50729707,212.23,212.22,3.97232452]
[1737092202726,7.50729707,212.23,212.15,7.50729707]
[1737092202927,7.50729707,212.21,212.16,3.97205136]
[1737092203125,7.50729707,212.21,212.17,3.97205136]
[1737092203326,7.50729707,212.21,212.18,3.97205136]
[1737092203526,7.50729707,212.21,212.19,3.97205136]
[1737092203724,7.50729707,212.21,212.13,12.34729707]
[1737092203917,7.50729707,212.21,212.14,3.97192433]
[1737092204122,12.22029707,212.21,212.16,4.7141]
[1737092204425,12.22029707,212.21,212.17,3.97192433]
[1737092204726,12.22029707,212.21,212.18,3.97192433]
[1737092204928,12.22029707,212.21,212.19,3.97192433]
[1737092205126,12.22029707,212.21,212.16,4.7141]
[1737092205325,12.22029707,212.21,212.17,3.97120598]
[1737092205525,12.22029707,212.21,212.18,3.97120598]
[1737092205718,12.22029707,212.21,212.16,4.7141]
[1737092205719,12.22029707,212.21,212.19,3.97120598]
[1737092205923,12.22029707,212.21,212.16,4.7141]
[1737092206126,12.22029707,212.21,212.17,3.97121533]
[1737092206325,12.22029707,212.21,212.18,3.97121533]
[1737092206524,12.22029707,212.21,212.19,3.97121533]
[1737092206726,12.22029707,212.21,212.16,4.7141]
[1737092207026,12.22029707,212.21,212.17,3.97086883]
[1737092207228,12.22029707,212.21,212.18,3.97086883]
[1737092207527,12.22029707,212.21,212.19,3.97086883]
[1737092207727,12.22029707,212.21,212.16,4.7141]
[1737092207928,12.22029707,212.21,212.17,3.97056617]
[1737092208127,12.22029707,212.21,212.18,3.97056617]
[1737092208329,12.22029707,212.21,212.19,3.97056617]
[1737092208523,12.22029707,212.21,212.16,4.7141]
[1737092208725,12.22029707,212.21,212.17,3.97029475]
[1737092208924,12.22029707,212.21,212.18,3.97029475]
[1737092209129,12.22029707,212.21,212.19,3.97029475]
[1737092209333,12.22029707,212.21,212.16,4.7141]
[1737092209522,12.22029707,212.21,212.17,3.97005509]
[1737092209724,12.22029707,212.21,212.18,3.97005509]
[1737092210027,12.22029707,212.21,212.19,3.97005509]
[1737092210229,12.22029707,212.21,212.16,4.7141]
[1737092210428,12.22029707,212.21,212.17,3.96989568]
[1737092210630,12.22029707,212.21,212.18,3.96989568]
[1737092210827,12.22029707,212.21,212.19,3.96989568]
[1737092211028,12.22029707,212.21,212.16,4.7141]
[1737092211228,12.22029707,212.21,212.17,3.96988094]
[1737092211527,12.22029707,212.21,212.18,3.96988094]
[1737092211830,12.22029707,212.21,212.19,3.96988094]
[1737092212031,12.22029707,212.21,212.16,4.7141]
[1737092212332,12.22029707,212.21,212.17,3.96974056]
[1737092212631,12.22029707,212.21,212.16,4.7141]
[1737092212632,12.22029707,212.21,212.18,3.96974056]
[1737092212826,12.22029707,212.21,212.19,3.96974056]
[1737092213027,12.22029707,212.21,212.16,4.7141]
[1737092213324,12.22029707,212.21,212.17,3.96965705]
[1737092213528,12.22029707,212.21,212.18,3.96965705]
[1737092213729,12.22029707,212.21,212.19,3.96965705]
[1737092213929,12.22029707,212.21,212.16,4.7141]
[1737092214131,12.22029707,212.21,212.17,3.96952948]
[1737092214331,12.22029707,212.21,212.18,3.96952948]
[1737092214631,12.22029707,212.21,212.19,3.96952948]
[1737092214832,12.22029707,212.21,212.16,4.714]
[1737092215036,12.22029707,212.21,212.17,3.96939503]
[1737092215229,12.22029707,212.21,212.18,3.96939503]
[1737092215430,12.22029707,212.21,212.19,3.96939503]
[1737092215634,12.22029707,212.21,212.16,4.714]
[1737092215933,12.22029707,212.21,212.17,3.96930855]
[1737092216129,12.22029707,212.21,212.18,3.96930855]
[1737092216434,12.22029707,212.21,212.19,3.96930855]
[1737092216634,12.22029707,212.21,212.16,4.714]
[1737092216829,12.22029707,212.21,212.17,3.9692147]
[1737092217030,12.22029707,212.21,212.18,3.9692147]
[1737092217232,12.22029707,212.21,212.19,3.9692147]
[1737092217432,12.22029707,212.21,212.16,4.714]
[1737092217628,12.22029707,212.21,212.17,3.96909211]
[1737092217831,12.22029707,212.21,212.18,3.96909211]
[1737092218031,12.22029707,212.21,212.19,3.96909613]
[1737092218233,12.22029707,212.21,212.16,4.714]
[1737092218536,7.50729707,212.24,212.17,3.96924323]
[1737092218834,7.50729707,212.24,212.18,3.96924323]
[1737092219035,7.50729707,212.24,212.19,3.96924323]
[1737092219335,7.50729707,212.24,212.17,7.50729707]
[1737092219535,7.50729707,212.24,212.18,3.96936415]
[1737092219726,4.7125,212.23,212.19,8.68266415]
[1737092219929,4.7125,212.23,212.19,4.7133]
[1737092220233,4.7125,212.23,212.2,3.96936417]
[1737092220427,4.7125,212.23,212.19,4.7133]
[1737092221933,154.48124142,212.31,212.2,3.96898992]
[1737092222132,7.50729707,212.26,212.21,3.96898992]
[1737092222337,7.50729707,212.28,212.22,3.96898992]
[1737092222642,7.50729707,212.28,212.23,4.7125]
[1737092223930,7.50729707,212.28,212.24,3.96843475]
[1737092224135,7.50729707,212.28,212.24,4.7123]
[1737092224534,7.50729707,212.28,212.21,7.50729707]
[1737092224730,7.50729707,212.28,212.25,4.712]
[1737092225134,7.50729707,212.28,212.24,4.7123]
[1737092225535,7.50729707,212.28,212.25,3.96768461]
[1737092225833,7.50729707,212.28,212.24,4.7123]
[1737092226029,7.50729707,212.26,212.25,3.96767978]
[1737092226229,7.50729707,212.26,212.17,4.8]
[1737092226539,7.50729707,212.22,212.18,3.96757572]
[1737092226733,7.50729707,212.22,212.19,3.96757572]
[1737092226931,12.22009707,212.22,212.2,3.96757572]
[1737092227130,12.22009707,212.22,212.21,3.96757572]
[1737092229140,4.7133,212.2,212.14,4.8]
[1737092229336,7.50729707,212.19,212.15,3.96790784]
[1737092229536,7.50729707,212.19,212.16,3.96791922]
[1737092229738,7.50729707,212.19,212.17,3.96791922]
[1737092229939,7.50729707,212.19,212.18,3.96791922]
[1737092231345,7.50729707,212.21,212.18,3.96791922]
[1737092231535,7.50729707,212.21,212.15,7.50729707]
[1737092231740,7.50729707,212.23,212.16,3.96772312]
[1737092231940,7.50729707,212.23,212.18,4.7134]
[1737092232142,7.50729707,212.23,212.19,3.96772312]
[1737092232337,7.50729707,212.23,212.18,4.7134]
[1737092232542,7.50729707,212.23,212.19,3.96773619]
[1737092232842,7.50729707,212.23,212.18,4.7134]
[1737092233042,7.50729707,212.23,212.19,3.96773619]
[1737092233238,7.50729707,212.23,212.2,3.96745681]
[1737092233444,7.50729707,212.23,212.21,3.96745194]
[1737092233644,7.50729707,212.23,212.18,4.7134]
[1737092233844,7.50729707,212.23,212.19,3.96745194]
[1737092234043,7.50729707,212.23,212.2,3.96745194]
[1737092234244,7.50729707,212.23,212.18,4.7134]
[1737092234442,7.50729707,212.23,212.19,3.96793149]
[1737092234646,7.50729707,212.23,212.2,3.96793149]
[1737092234848,7.50729707,212.23,212.17,7.50729707]
[1737092235049,7.50729707,212.23,212.18,3.96785053]
[1737092235350,7.50729707,212.23,212.19,3.96785053]
[1737092235550,7.50729707,212.23,212.2,3.96831608]
[1737092235749,7.50729707,212.23,212.21,3.96831608]
[1737092235949,7.50729707,212.23,212.17,7.50729707]
[1737092236151,7.50729707,212.23,212.18,3.9683335]
[1737092236452,7.50729707,212.23,212.19,3.9683335]
[1737092236647,7.50729707,212.23,212.2,3.9683335]
[1737092236848,7.50729707,212.23,212.21,3.9683335]
[1737092237043,7.50729707,212.23,212.17,7.50729707]
[1737092237253,7.50729707,212.23,212.19,4.7132]
[1737092237451,7.50729707,212.23,212.2,3.96886869]
[1737092237653,2.8919,212.32,212.21,3.96886869]
[1737092237952,7.50729707,212.26,212.19,7.50729707]
[1737092238155,7.50729707,212.26,212.2,3.96951623]
[1737092238455,7.50729707,212.26,212.21,3.96951623]
[1737092238752,7.50729707,212.26,212.22,3.96951623]
[1737092238953,7.50729707,212.26,212.23,3.96955047]
[1737092239254,4.7118,212.27,212.24,3.96955047]
[1737092239449,4.7118,212.27,212.21,4.7128]
[1737092239651,4.7118,212.27,212.22,3.9689006]
[1737092239851,4.7118,212.27,212.23,3.9689006]
[1737092240050,4.7118,212.27,212.24,3.9689006]
[1737092240251,4.7118,212.27,212.21,4.7128]
[1737092240451,4.7118,212.27,212.22,3.96865103]
[1737092240656,4.7118,212.27,212.23,3.96865103]
[1737092240852,4.7118,212.27,212.24,3.96865103]
[1737092241053,4.7118,212.27,212.21,4.7128]
[1737092241352,4.7119,212.26,212.22,3.96837066]
[1737092241553,4.7119,212.26,212.23,3.96837066]
[1737092241854,4.7119,212.26,212.21,4.7128]
[1737092242052,4.7119,212.26,212.22,3.96832995]
[1737092242258,4.7119,212.26,212.23,3.96832995]
[1737092242557,7.50729707,212.28,212.24,3.96832995]
[1737092242756,7.50729707,212.26,212.21,4.7128]
[1737092242959,7.50729707,212.26,212.22,3.96808622]
[1737092243149,7.50729707,212.26,212.23,3.96808622]
[1737092243350,7.50729707,212.26,212.24,3.96808622]
[1737092243656,7.50729707,212.28,212.19,7.50729707]
[1737092243855,7.50729707,212.28,212.23,4.7123]
[1737092244055,7.50729707,212.28,212.24,3.96781479]
[1737092244255,7.50729707,212.28,212.23,4.7123]
[1737092244456,7.50729707,212.28,212.24,3.96750122]
[1737092244656,7.50729707,212.28,212.23,4.7123]
[1737092245060,12.21869707,212.28,212.23,4.7123]
[1737092245561,12.21869707,212.28,212.24,3.96735835]
[1737092245762,12.21869707,212.28,212.23,4.7123]
[1737092246065,12.21869707,212.28,212.24,3.96732716]
[1737092246262,12.21869707,212.28,212.23,4.7123]
[1737092246459,12.21869707,212.28,212.24,3.96711311]
[1737092246658,12.21869707,212.28,212.23,4.7123]
[1737092250062,12.21869707,212.28,212.24,3.96675593]
[1737092250264,12.21869707,212.28,212.25,3.9665652]
[1737092250459,4.711,212.3,212.25,4.7119]
[1737092250656,7.50729707,212.29,212.25,4.7119]
[1737092251063,7.50729707,212.27,212.24,4.7121]
[1737092251262,7.50729707,212.27,212.2,7.50729707]
[1737092251461,7.50729707,212.27,212.21,3.96647739]
[1737092251661,12.21899707,212.27,212.22,8.67907739]
[1737092251859,12.21899707,212.27,212.23,3.96647782]
[1737092252061,12.21899707,212.27,212.22,4.7126]
[1737092252260,12.21899707,212.27,212.23,3.96656766]
[1737092252462,7.50729707,212.27,212.23,4.7125]
[1737092254164,12.21899707,212.27,212.23,4.7125]
[1737092254365,7.50729707,212.27,212.21,4.7128]
[1737092254565,7.50729707,212.27,212.22,3.96706585]
[1737092254766,7.50729707,212.25,212.21,4.7128]
[1737092254967,7.50729707,212.25,212.22,3.96706585]
[1737092255166,7.50729707,212.25,212.21,4.7128]
[1737092255369,7.50729707,212.25,212.22,3.96728565]
[1737092255661,7.50729707,212.25,212.21,4.7128]
[1737092256165,7.50729707,212.25,212.19,4.7134]
[1737092256367,7.50729707,212.23,212.2,3.96777177]
[1737092256666,7.50729707,212.23,212.19,4.7134]
[1737092256861,7.50729707,212.23,212.2,3.9677831]
[1737092257064,7.50729707,212.23,212.19,4.7134]
[1737092257370,7.50729707,212.23,212.2,3.96793851]
[1737092257564,7.50729707,212.21,212.17,4.7137]
[1737092257766,7.50729707,212.21,212.18,3.96808198]
[1737092258065,7.50729707,212.21,212.19,3.96808198]
[1737092258371,7.50729707,212.21,212.14,4.7144]
[1737092258567,7.50729707,212.19,212.15,3.9687437]
[1737092258770,7.50729707,212.19,212.16,3.9687437]
[1737092258966,7.50729707,212.19,212.17,3.9687437]
[1737092259172,7.50729707,212.19,212.18,3.9687437]
[1737092260067,12.22069707,212.19,212.18,3.96878869]
[1737092260371,12.22069707,212.19,212.14,4.7144]
[1737092260571,12.22069707,212.19,212.15,3.96866386]
[1737092260771,12.22069707,212.19,212.16,3.96866386]
[1737092260972,12.22069707,212.19,212.17,3.96866386]
[1737092261167,12.22069707,212.19,212.14,4.7144]
[1737092261368,7.50729707,212.19,212.15,3.96843562]
[1737092261565,7.50729707,212.19,212.16,3.96843562]
[1737092261766,154.48124142,212.29,212.17,8.68223562]
[1737092261971,7.50729707,212.23,212.16,7.50729707]
[1737092262273,7.50729707,212.23,212.17,3.96841405]
[1737092262469,7.50729707,212.23,212.18,3.96841405]
[1737092262667,7.50729707,212.23,212.19,3.96841405]
[1737092262868,7.50729707,212.23,212.2,3.96841405]
[1737092263061,7.50729707,212.23,212.16,7.50729707]
[1737092263062,7.50729707,212.23,212.18,4.7135]
[1737092263272,7.50729707,212.23,212.19,3.96811076]
[1737092263562,7.50729707,212.23,212.2,3.96811076]
[1737092263767,7.50729707,212.23,212.18,4.7135]
[1737092263964,7.50729707,212.23,212.19,3.96825932]
[1737092264163,7.50729707,212.23,212.2,3.96825932]
[1737092264366,7.50729707,212.23,212.18,4.7135]
[1737092264566,7.50729707,212.23,212.19,3.9684218]
[1737092264762,7.50729707,212.23,212.2,3.96832788]
[1737092264963,7.50729707,212.23,212.21,3.96832788]
[1737092265173,7.50729707,212.23,212.18,4.7135]
[1737092265373,7.50729707,212.23,212.19,3.96839529]
[1737092265569,7.50729707,212.23,212.2,3.96839529]
[1737092265769,7.50729707,212.23,212.18,4.7135]
[1737092265969,12.21969707,212.24,212.19,3.96844336]
[1737092266170,12.21969707,212.24,212.2,3.96844336]
[1737092266369,12.21969707,212.24,212.21,3.96844336]
[1737092266570,12.21969707,212.24,212.18,12.22079707]
[1737092266772,12.21969707,212.24,212.19,3.96859205]
[1737092266971,7.50729707,212.24,212.2,3.96859205]
[1737092267171,4.7125,212.23,212.18,4.7135]
[1737092267373,4.7125,212.23,212.19,3.96878227]
[1737092267571,4.7125,212.23,212.2,3.96878227]
[1737092267776,4.7125,212.23,212.18,4.7135]
[1737092267971,4.7125,212.23,212.19,3.96868995]
[1737092268166,4.7125,212.23,212.2,3.96864364]
[1737092268372,4.7125,212.23,212.18,4.7135]
[1737092268572,4.7125,212.23,212.19,3.96864364]
[1737092268769,12.21959707,212.24,212.2,3.96864364]
[1737092268970,12.21959707,212.24,212.18,4.7135]
[1737092269268,12.21959707,212.24,212.19,3.96864525]
[1737092269466,12.21959707,212.24,212.18,4.7135]
[1737092269467,12.21959707,212.24,212.2,3.96864525]
[1737092269672,12.21959707,212.24,212.18,4.7135]
[1737092269971,12.21959707,212.24,212.19,3.9686855]
[1737092270167,12.21959707,212.24,212.2,3.96882899]
[1737092270371,12.21959707,212.24,212.18,4.7135]
[1737092270676,12.21959707,212.24,212.19,3.96882899]
[1737092270877,4.7116,212.28,212.23,4.7125]
[1737092271176,2.8919,212.32,212.21,7.50729707]
[1737092271373,7.50729707,212.3,212.22,3.96869543]
[1737092271574,7.50729707,212.3,212.23,3.96869543]
[1737092271775,7.50729707,212.3,212.23,7.50729707]
[1737092271970,1.4425,212.32,212.24,3.96840779]
[1737092272274,1.4425,212.32,212.25,3.96812633]
[1737092272275,8.94979707,212.32,212.25,3.96812633]
[1737092272475,7.50729707,212.3,212.19,3.0583]
[1737092272676,7.50729707,212.3,212.22,7.50729707]
[1737092272876,7.50729707,212.3,212.23,3.96812236]
[1737092273077,7.50729707,212.3,212.24,3.96812236]
[1737092273277,7.50729707,212.3,212.25,3.96812236]
[1737092273577,7.50729707,212.3,212.22,7.50729707]
[1737092273775,7.50729707,212.3,212.23,3.96772871]
[1737092273975,7.50729707,212.3,212.24,3.96772871]
[1737092274176,12.21829707,212.3,212.25,3.96772871]
[1737092274378,12.21829707,212.3,212.24,4.7122]
[1737092274573,12.21829707,212.3,212.25,3.96736389]
[1737092274779,12.21829707,212.3,212.24,4.7122]
[1737092275074,12.21829707,212.3,212.25,3.96736389]
[1737092275279,12.21829707,212.3,212.24,4.7122]
[1737092275580,12.21829707,212.3,212.25,3.96736925]
[1737092275779,12.21829707,212.3,212.24,4.7122]
[1737092275975,12.21829707,212.3,212.25,3.96736764]
[1737092276175,12.21829707,212.3,212.24,4.7122]
[1737092276376,12.21829707,212.3,212.25,3.96744317]
[1737092276577,12.21829707,212.3,212.24,4.7122]
[1737092276779,12.21829707,212.3,212.25,3.96748381]
[1737092277077,12.21829707,212.3,212.24,4.7122]
[1737092277278,12.21829707,212.3,212.25,3.96751638]
[1737092277480,12.21829707,212.3,212.24,4.7122]
[1737092277679,12.21829707,212.3,212.25,3.96751174]
[1737092277981,12.21829707,212.3,212.24,4.7122]
[1737092278281,12.21829707,212.3,212.25,3.96762294]
[1737092278481,12.21829707,212.3,212.24,4.7122]
[1737092278781,12.21829707,212.3,212.25,3.96762859]
[1737092278983,12.21829707,212.3,212.24,4.7122]
[1737092279177,12.21829707,212.3,212.25,3.96762842]
[1737092279382,12.21829707,212.3,212.24,4.7122]
[1737092279584,12.21829707,212.3,212.25,3.96755081]
[1737092279783,12.21829707,212.3,212.24,4.7122]
[1737092280678,12.21829707,212.3,212.25,4.7121]
[1737092280875,6.1532,212.32,212.24,7.50729707]
[1737092281083,7.50729707,212.31,212.25,3.96739396]
[1737092281278,7.50729707,212.31,212.24,7.50729707]
[1737092281477,1.4425,212.32,212.25,3.96726874]
[1737092281681,8.94979707,212.32,212.27,4.7116]
[1737092282186,8.94979707,212.32,212.28,4.7114]
[1737092284580,8.94979707,212.32,212.24,7.50729707]
[1737092284786,7.50729707,212.32,212.29,4.7112]
[1737092286089,7.50729707,212.32,212.28,4.7114]
[1737092289796,7.50729707,212.32,212.24,7.50729707]
[1737092289996,7.50729707,212.3,212.26,4.7117]
[1737092291000,7.50729707,212.3,212.27,4.7116]
[1737092292095,4.7107,212.32,212.27,4.7116]
[1737092292096,12.21799707,212.32,212.27,4.7116]
[1737092292489,4.7101,212.34,212.29,4.7111]
[1737092292688,7.50729707,212.34,212.26,7.50729707]
[1737092292889,7.50729707,212.34,212.26,12.26729707]
[1737092294100,7.50729707,212.34,212.29,4.7111]
[1737092294301,7.50729707,212.34,212.28,7.50729707]
[1737092294596,4.7099,212.35,212.28,7.50729707]
[1737092294800,12.21689707,212.36,212.31,4.7107]
[1737092294997,7.50729707,212.34,212.31,4.7107]
[1737092301504,7.50729707,212.34,212.29,4.711]
[1737092304508,7.50729707,212.34,212.31,4.7107]
[1737092306811,3.0527,212.37,212.29,7.50729707]
[1737092307012,7.50729707,212.36,212.29,7.50729707]
[1737092307512,7.50729707,212.36,212.31,4.7107]
[1737092308311,4.711,212.31,212.25,4.712]
[1737092308506,7.50729707,212.28,212.2,55.95579154]
[1737092308708,7.50729707,212.28,212.21,3.9622332]
[1737092308904,7.50729707,212.28,212.22,3.9622332]
[1737092309213,7.50729707,212.28,212.24,4.7121]
[1737092309412,7.50729707,212.28,212.25,3.9622332]
[1737092309711,7.50729707,212.28,212.24,4.7121]
[1737092309908,7.50729707,212.28,212.25,3.96321706]
[1737092310108,7.50729707,212.28,212.24,4.7121]
[1737092310311,7.50729707,212.28,212.25,3.96395071]
[1737092310511,7.50729707,212.28,212.26,3.96395071]
[1737092310714,7.50729707,212.28,212.24,4.7121]
[1737092310908,7.50729707,212.28,212.25,3.96395071]
[1737092311113,7.50729707,212.28,212.26,3.96395071]
[1737092311315,7.50729707,212.28,212.24,4.7121]
[1737092311617,7.50729707,212.28,212.25,3.96457986]
[1737092311818,4.711,212.3,212.26,3.96457986]
[1737092312116,7.50729707,212.29,212.25,4.7121]
[1737092312518,7.50729707,212.29,212.26,3.96570577]
[1737092312718,7.50729707,212.29,212.25,4.7121]
[1737092312922,7.50729707,212.29,212.26,3.96570395]
[1737092313219,7.50729707,212.29,212.25,4.7121]
[1737092313417,7.50729707,212.29,212.26,3.96678917]
[1737092313621,7.50729707,212.29,212.25,4.7121]
[1737092313820,7.50729707,212.29,212.26,3.9668007]
[1737092314024,7.50729707,212.29,212.25,4.7121]
[1737092314220,7.50729707,212.29,212.26,3.96796091]
[1737092314421,7.50729707,212.29,212.25,4.7121]
[1737092314724,7.50729707,212.29,212.26,3.9680771]
[1737092314924,7.50729707,212.29,212.25,4.7121]
[1737092315125,7.50729707,212.29,212.26,3.96807843]
[1737092315425,7.50729707,212.29,212.25,4.7121]
[1737092315623,7.50729707,212.29,212.26,3.96954913]
[1737092315822,7.50729707,212.29,212.25,4.7121]
[1737092316123,7.50729707,212.29,212.26,3.96954752]
[1737092316317,7.50729707,212.29,212.25,4.7121]
[1737092316522,7.50729707,212.29,212.26,3.97034205]
[1737092316721,7.50729707,212.29,212.25,4.7121]
[1737092316924,7.50729707,212.29,212.26,3.97034205]
[1737092317225,7.50729707,212.29,212.25,4.7121]
[1737092317425,7.50729707,212.29,212.26,3.97053216]
[1737092317724,7.50729707,212.29,212.27,3.97053216]
[1737092317929,7.50729707,212.29,212.25,4.7121]
[1737092318219,7.50729707,212.29,212.26,3.97053056]
[1737092318424,7.50729707,212.29,212.27,3.97053056]
[1737092318625,7.50729707,212.29,212.25,4.7121]
[1737092318825,7.50729707,212.29,212.26,3.97060569]
[1737092319022,7.50729707,212.29,212.27,3.97060569]